Cogmind - Beta 15 @@@ ROGUE MODE // 2025.06.06 @ 23:06:45 Player: McSaucyNugget Result: Self-destructed Performance ------------- Evolutions (5) 2500 Regions Visited (15) 3000 Robots Destroyed (83) 415 Value Destroyed (2581) 2581 Prototype IDs (9) 180 Alien Tech Used (0) 0 Bonus (2640) 2640 TOTAL SCORE: 11316 Bonus ------- High Alert Combat Kills 22 Follower Combat Kills 111 Met Imprinter 300 Met Warlord at Base 500 MAIN.C Attacked Warlord 500 Warlord Defense Kills 1336 Friendly Fire -129 Cogmind --------- Core Integrity 591/1000 Matter 266/300 Energy 315/315 System Corruption 0% Temperature Cool (66) Movement Walking (190) Ox1 Location -5/Warlord Parts ------- > --- POWER (2) -------- Neutrino Core > --- PROPULSION (5) --- Carbon-fiber Leg Improved Carbon-fiber Leg Flexi-carbon Leg Armored Leg > --- UTILITY (7) ------ Advanced Heat Sink Large Storage Unit Improved Signal Interpreter Improved Medium Armor Plating Layered Heavy Armor Plating Ghost Barrier > --- WEAPON (3) ------- Phase Gun Phase Gun Coil Gun > --- INVENTORY (15) --- Enhanced Biometal Leg Advanced Heat Sink 0b10 Decoder Chip [Looter] Makeshift Utility Shielding Authchip [Storage] Mobile Refinery Mk. CCLXVII Vortex Driver (28) Lance Peak State ------------ > --- POWER ------------ Vortex Chain Reactor > --- PROPULSION ------- Improved Titanium Leg Flexi-carbon Leg Flexi-carbon Leg Enhanced Biometal Leg Enhanced Biometal Leg > --- UTILITY ---------- Large Storage Unit Advanced Sensor Array Improved Signal Interpreter Layered Heavy Armor Plating Advanced Remote Shield Ghost Barrier > --- WEAPON ----------- Vortex Driver Heavy Machine Gun Heavy Machine Gun > --- INVENTORY -------- Carbon-fiber Leg Carbon-fiber Leg Carbon-fiber Leg Armored Leg 0b10 Decoder Chip [Looter] Makeshift Utility Shielding Layered Heavy Armor Plating Authchip [Storage] Mobile Refinery Mk. CCLXVII Phase Gun Phase Gun Heavy Machine Gun Heavy Missile Launcher Lance [Rating: 117] Favorites ----------- Power Fission Core Engine Ion Engine Power Core Fission Core Reactor Vortex Chain Reactor Propulsion Flexi-carbon Leg Treads Light Treads Leg Flexi-carbon Leg Wheel Compact Wheel Utility Improved Signal Interpreter Device Advanced Sensor Array Storage Large Storage Unit Processor Improved Signal Interpreter Hackware Improved Hacking Suite Protection Hardened Medium Armor Plating Weapon Heavy Machine Gun Energy Gun Medium Laser Energy Cannon Beam Cannon Ballistic Gun Heavy Machine Gun Ballistic Cannon Gauss Cannon Launcher Mini Grenade Launcher Impact Weapon Heavy Hammer Piercing Weapon Lance Build | -11 -10 -10 -9 -9 -8 -7 -6 -6 -6 -6 -5 -5 -5 -5 -5 ------- Run | Yrd Mat Min Mat Min Mat Fac Fac Low Low Zio Pro Fac Upp Upp War Slots Evolved 10 | . . . 2 . 2 2 2 . . . . 2 . . . Power 1 | . . . . . . . . . . . . 1 . . . Propulsion 3 | . . . 1 . 1 . 1 . . . . . . . . Utility 5 | . . . 1 . 1 1 1 . . . . 1 . . . Weapon 1 | . . . . . . 1 . . . . . . . . . Parts Attached 95 | 7 1 4 6 1 4 27 16 . 1 2 1 4 1 . 20 Power 11 | 1 . 1 . . 1 2 2 . . . . 1 . . 3 Engine 2 | 1 . . . . . 1 . . . . . . . . . Core 7 | . . 1 . . 1 1 2 . . . . 1 . . 1 Reactor 2 | . . . . . . . . . . . . . . . 2 Propulsion 23 | 2 . 2 1 . 1 9 2 . . . . . . . 6 Treads 5 | . . 2 1 . 1 1 . . . . . . . . . Leg 12 | . . . . . . 4 2 . . . . . . . 6 Wheel 6 | 2 . . . . . 4 . . . . . . . . . Hover . | . . . . . . . . . . . . . . . . Flight . | . . . . . . . . . . . . . . . . Utility 30 | 2 1 . 1 . 1 8 6 . 1 . . 2 1 . 7 Device 11 | 1 . . . . 1 5 1 . . . . . . . 3 Storage 4 | 1 1 . . . . . 2 . . . . . . . . Processor 2 | . . . . . . 1 . . . . . 1 . . . Hackware 4 | . . . . . . . 3 . . . . . . . 1 Protection 9 | . . . 1 . . 2 . . 1 . . 1 1 . 3 Artifact . | . . . . . . . . . . . . . . . . Weapon 31 | 2 . 1 4 1 1 8 6 . . 2 1 1 . . 4 Energy Gun 4 | 1 . . . . . 1 . . . . . . . . 2 Energy Cannon 4 | . . . 1 . . 2 . . . . . . . . 1 Ballistic Gun 12 | 1 . . 2 . . 3 4 . . 1 . . . . 1 Ballistic Cannon 3 | . . . 1 . . 1 1 . . . . . . . . Launcher 5 | . . 1 . 1 1 1 . . . . 1 . . . . Special Weapon . | . . . . . . . . . . . . . . . . Impact Weapon 2 | . . . . . . . 1 . . 1 . . . . . Slashing Weapon . | . . . . . . . . . . . . . . . . Piercing Weapon 1 | . . . . . . . . . . . . 1 . . . Special Melee Weapon . | . . . . . . . . . . . . . . . . Unidentified Prototypes 8 | . . . . . . 2 . . . 1 . . . . 5 Parts Lost 29 | . . 4 1 . 8 2 . . 1 1 . . . . 12 Power 6 | . . 1 . . 1 1 . . . . . . . . 3 Propulsion 9 | . . 2 . . 3 . . . 1 . . . . . 3 Utility 6 | . . . . . 2 1 . . . . . . . . 3 Weapon 8 | . . 1 1 . 2 . . . . 1 . . . . 3 Highest Loss Streak 8 | . . 3 1 . 6 1 . . 1 1 . . . . 8 To Critical Strikes . | . . . . . . . . . . . . . . . . Average Backups 11 | 3 6 7 9 15 15 4 7 12 14 15 15 14 14 15 13 Power . | . 1 1 1 1 1 . . 1 1 1 1 . . . . Propulsion 2 | 2 3 2 1 1 . 1 1 4 4 4 4 4 4 4 3 Utility 3 | . 1 2 3 4 4 . 1 2 3 5 7 6 6 7 5 Weapon 4 | . 1 2 3 9 8 3 3 4 5 4 3 3 4 4 3 Tool/Special . | . . . . . . . . . . . . . . . . Unused Backups 27 | . . . . . 9 1 4 . 1 2 1 1 . . 8 Power 3 | . . . . . 1 . 1 . . . . 1 . . . Propulsion 3 | . . . . . 1 . . . . . . . . . 2 Utility 12 | . . . . . 3 . 1 . . 1 1 . . . 6 Weapon 9 | . . . . . 4 1 2 . 1 1 . . . . . Tool/Special . | . . . . . . . . . . . . . . . . Average Slot Usage (%) 94 | . 100 93 91 100 78 78 98 100 99 99 100 99 100 100 91 Engine 1 | . 14 8 . . . 3 . . . . . . . . . Core 6 | . . 1 11 11 7 2 6 6 6 6 6 11 11 11 7 Treads 4 | . . 10 28 33 27 . . . . . . . . . . Leg 21 | . . . . . . 10 32 33 32 33 33 29 29 29 27 Wheel 3 | . 28 17 . . . 11 . . . . . . . . . Device 9 | . 14 14 11 11 15 20 14 6 6 6 6 5 5 5 6 Storage 5 | . 14 14 11 11 7 . 3 6 6 6 6 5 5 5 5 Processor 4 | . . . . . . 5 6 6 6 6 6 5 5 5 5 Hackware 7 | . . . . . . . 7 13 13 13 13 11 11 11 9 Protection 6 | . . . 10 11 5 3 5 6 6 6 6 10 11 11 6 Energy Gun 1 | . 14 14 4 . . 1 . . . . . . . . . Energy Cannon 1 | . . . 6 11 7 2 2 . . . . . . . 1 Ballistic Gun 13 | . 14 11 7 . . 8 12 20 19 19 19 14 11 15 14 Launcher 1 | . . . . 8 4 2 2 . . . . . . . . Peak Build Rating 117 | 7 7 9 15 16 20 46 68 70 70 70 70 79 80 80 117 Average Rating 54 | 4 7 6 13 15 15 33 60 68 69 69 69 77 79 79 88 On Entrance 42 | . 7 7 9 15 16 2 40 68 70 69 70 69 78 80 80 Naked Turns . | . . . . . . . . . . . . . . . . Heaviest Build 112 | 15 50 52 58 58 61 34 52 52 55 54 56 72 70 72 112 Greatest Support 120 | 32 32 40 60 60 83 76 98 98 98 96 96 96 96 96 120 Greatest Overweight (x) 2 | . 1 1 1 . 1 1 . . . . . . . . 2 Average Overweight (x) . | . . 1 . . . . . . . . . . . . . Largest Inventory Capacity 20 | 8 20 20 20 20 20 5 15 15 15 15 15 15 15 15 15 Average Capacity 13 | 5 11 20 20 20 16 5 8 15 15 15 15 15 15 15 15 Most Carried 19 | 5 8 9 15 17 19 5 10 14 15 15 15 15 15 15 15 Average Carried 11 | 4 6 7 9 15 15 4 7 12 14 14 14 14 14 14 14 Final Capacity 20 | 8 20 20 20 20 5 5 15 15 15 15 15 15 15 15 15 Final Carried 17 | 5 8 8 15 17 5 4 10 14 15 15 15 14 15 15 8 Class Distribution -------------------- 37% | Hacker-Skirmisher 23% | Mutant 10% | Hacker-Tank 10% | Skirmisher 6% | Hacker-Mutant 6% | Tank Dominant Class ---------------- Mutant | -10/Materials Mutant | -10/Mines Mutant | -9/Materials Mutant | -9/Mines Mutant | -8/Materials Tank | -7/Factory Skirmisher | -6/Factory Hacker-Skirmisher | -6/Lower Caves Hacker-Skirmisher | -6/Lower Caves Hacker-Skirmisher | -6/Zion Hacker-Skirmisher | -5/Proximity Caves Hacker-Tank | -5/Factory Hacker-Mutant | -5/Upper Caves Hacker-Tank | -5/Upper Caves Hacker-Tank | -5/Warlord Resources | -11 -10 -10 -9 -9 -8 -7 -6 -6 -6 -6 -5 -5 -5 -5 -5 ----------- Run | Yrd Mat Min Mat Min Mat Fac Fac Low Low Zio Pro Fac Upp Upp War Matter Collected 2898 | 202 91 116 71 126 137 371 689 218 85 81 102 . 120 86 403 Remotely . | . . . . . . . . . . . . . . . . Salvage Created 2578 | 11 91 184 70 65 224 457 952 92 26 . 45 . . 73 288 Parts 134 | 2 5 10 8 10 17 32 29 3 2 . 5 . . 2 9 Haulers Intercepted 1 | . . . . . . . 1 . . . . . . . . Recyclers Shooed 2 | . . . . . . . 2 . . . . . . . . Parts Field Recycled . | . . . . . . . . . . . . . . . . Retrieved Matter . | . . . . . . . . . . . . . . . . Parts Self-Destructed 16 | . . . . . . . . 5 4 . 5 . . 2 . Prevented 2 | . . . . . . . . 1 . . . . . 1 . Kills | -11 -10 -10 -9 -9 -8 -7 -6 -6 -6 -6 -5 -5 -5 -5 -5 ------- Run | Yrd Mat Min Mat Min Mat Fac Fac Low Low Zio Pro Fac Upp Upp War Combat Hostiles Destroyed 56 | . 2 2 4 4 10 9 3 2 4 . 3 . . 1 12 Melee 1 | . . . . . . . . . . . . . . . 1 Guns 15 | . 2 2 . . . 2 1 2 . . 1 . . 1 4 Cannons 5 | . . . 1 . . 2 2 . . . . . . . . AOE 35 | . . . 3 4 10 5 . . 4 . 2 . . . 7 Classes Destroyed 16 | 1 1 2 3 . 2 2 2 . . . 1 . . . 2 Worker 5 | . . . 1 . . 2 2 . . . . . . . . Builder 8 | . . 1 . . 3 3 1 . . . . . . . . Tunneler 2 | 1 . . . 1 . . . . . . . . . . . Hauler 1 | . . . . . . . 1 . . . . . . . . Recycler 7 | . . 1 . . . 1 5 . . . . . . . . Operator 1 | . . . . . . 1 . . . . . . . . . Drone 2 | . . . . . . . . . . . 2 . . . . Watcher 2 | . . . . . 2 . . . . . . . . . . Swarmer 18 | . . . 3 4 3 4 . . 4 . . . . . . Saboteur 2 | . . . . . . . . . . . . . . . 2 Grunt 22 | . 2 2 . 1 5 1 . 2 . . . . . . 9 Brawler 2 | . . . . . 1 1 . . . . . . . . . Sentry 6 | . . . 1 . 1 2 1 . . . . . . 1 . Hunter 1 | . . . . . . . 1 . . . . . . . . Programmer 3 | . . . . . . 1 1 . . . 1 . . . . Executioner 1 | . . . . . . . . . . . . . . . 1 Best Kill Streak 9 | 1 2 2 4 4 6 6 2 2 4 . 2 . . 1 9 Combat Bots Only 9 | . 2 1 3 4 4 4 1 2 4 . 2 . . 1 9 Max Kills in Single Turn 4 | 1 1 1 2 2 4 4 1 1 2 . 1 . . 1 3 Gunslinging . | . . . . . . . . . . . . . . . . Exploded 3 | . . . 1 2 2 2 . . 2 . 1 . . . 3 Melee 1 | . . . . . . . . . . . . . . . 1 Uniques/NPCs Destroyed . | . . . . . . . . . . . . . . . . Combat | -11 -10 -10 -9 -9 -8 -7 -6 -6 -6 -6 -5 -5 -5 -5 -5 -------- Run | Yrd Mat Min Mat Min Mat Fac Fac Low Low Zio Pro Fac Upp Upp War Hostile Shots Fired 545 | . 7 30 15 4 92 139 47 41 4 . 18 . . 6 142 Missed 160 | . 3 5 4 . 26 44 15 16 . . 8 . . . 39 Hits 385 | . 4 25 11 4 66 95 32 25 4 . 10 . . 6 103 Melee 5 | . . . . . . 3 . . . . . . . . 2 Projectile 380 | . 4 25 11 4 66 92 32 25 4 . 10 . . 6 101 AOE 13 | . . 8 . . . . . . . . . . . . 5 Critical Strikes 17 | . . . . . 3 4 . . . . 1 . . . 9 Part Disruptions 1 | . . . . . 1 . . . . . . . . . . Damage Taken 7052 | . 87 560 121 73 1197 1095 445 397 73 . 204 . . 139 2661 Core 1212 | . 30 159 8 8 361 199 . 38 . . . . . 23 386 Absorbed by Shields 147 | . . . . . . . . . . . . . . . 147 Regen/Repaired (Parts) 458 | . . . . . . . 207 . . 114 . . . . 137 Core Remaining (%) 70 | 100 . 24 . 96 34 71 . . . . 95 . . . . Volleys Fired 213 | 3 7 17 16 3 13 43 49 13 9 . 10 2 . 5 23 Largest 3 | 2 2 2 2 1 1 3 3 3 1 . 3 3 . 3 3 Hottest 206 | 70 70 70 93 30 30 131 136 88 80 . 90 90 . 90 206 Shots Fired 388 | 6 14 31 23 3 13 70 84 41 8 1 26 6 . 15 47 Gun 260 | 6 14 29 13 . . 31 41 41 . 1 24 6 . 15 39 Cannon 87 | . . . 3 . . 34 43 . 5 . . . . . 2 Launcher 41 | . . 2 7 3 13 5 . . 3 . 2 . . . 6 Special . | . . . . . . . . . . . . . . . . Kinetic 242 | 3 7 14 8 . . 44 51 41 2 1 24 6 . 15 26 Thermal 98 | 3 7 15 8 . . 16 33 . 3 . . . . . 13 Explosive 41 | . . 2 7 3 13 5 . . 3 . 2 . . . 6 Electromagnetic 5 | . . . . . . 5 . . . . . . . . . Entropic 2 | . . . . . . . . . . . . . . . 2 Robot Hit Streak 16 | 4 6 12 2 . 9 16 8 5 3 . 6 1 . 4 9 Robot Miss Streak 10 | 1 1 3 9 2 2 2 4 3 . . 10 8 . 2 4 Penetration Max . | . . . . . . . . . . . . . . . . Secondary Targets 2 | . . 1 . . . . . . . . . . . . 1 Max Gunslinging Chain 1 | . . 1 . . . . . . . . . . . . 1 Shots Hit Robots 213 | 5 10 21 7 . 10 42 48 24 2 . 7 1 . 8 28 Core Hits 182 | 1 6 10 7 8 39 26 22 5 6 . 5 1 . 3 43 Critical Kills . | . . . . . . . . . . . . . . . . Critical Parts Destroyed . | . . . . . . . . . . . . . . . . Critical Strikes 6 | . 1 2 . . . 2 . . . . . . . . 1 Burn 3 | . 1 2 . . . . . . . . . . . . . Blast 2 | . . . . . . 2 . . . . . . . . . Sunder 1 | . . . . . . . . . . . . . . . 1 Melee Attacks 2 | . . . . . . . . . . 1 . 1 . . . Impact 1 | . . . . . . . . . . 1 . . . . . Slashing . | . . . . . . . . . . . . . . . . Piercing 1 | . . . . . . . . . . . . 1 . . . Sneak Attacks . | . . . . . . . . . . . . . . . . Combat Hostiles . | . . . . . . . . . . . . . . . . Follow-up Attacks . | . . . . . . . . . . . . . . . . Damage Inflicted 9796 | 64 127 350 499 233 1718 1427 1171 511 394 . 365 20 . 184 2733 Guns 2924 | 64 127 284 42 . . 315 486 511 . . 188 20 . 184 703 Cannons 1281 | . . . 39 . . 476 685 . . . . . . . 81 Explosions 5542 | . . 62 418 233 1709 622 . . 394 . 155 . . . 1949 Melee . | . . . . . . . . . . . . . . . . Ramming 49 | . . 4 . . 9 14 . . . . 22 . . . . Kinetic 2704 | 27 78 136 39 . . 445 581 511 . . 188 20 . 184 495 Thermal 1380 | 37 49 148 42 . . 306 590 . . . . . . . 208 Explosive 5456 | . . 62 418 233 1651 594 . . 394 . 155 . . . 1949 Electromagnetic 126 | . . . . . 58 68 . . . . . . . . . Impact . | . . . . . . . . . . . . . . . . Slashing . | . . . . . . . . . . . . . . . . Piercing . | . . . . . . . . . . . . . . . . Entropic 81 | . . . . . . . . . . . . . . . 81 Highest Corruption 5 | . . . . . 1 3 5 5 5 5 1 . . . . Average Corruption 3 | . . . . . 1 1 5 5 5 5 1 . . . . Corruption Purged . | . . . . . . . . . . . . . . . . Corruption Blocked . | . . . . . . . . . . . . . . . . Effects 90 | . . . . . . 15 19 31 21 4 . . . . . Message Errors 21 | . . . . . . 2 8 6 5 . . . . . . Matter Fused 18 | . . . . . . 4 2 8 4 . . . . . . Heat Flow Errors 13 | . . . . . . 3 . 5 3 2 . . . . . Energy Discharges 10 | . . . . . . 2 1 3 4 . . . . . . Parts Rejected 1 | . . . . . . 1 . . . . . . . . . Parts Fused 2 | . . . . . . . 1 1 . . . . . . . Data Loss (minor) 11 | . . . . . . 2 4 3 2 . . . . . . Data Loss (major) 3 | . . . . . . . . 2 . 1 . . . . . Misfires 5 | . . . . . . . 2 2 . 1 . . . . . Alerts 4 | . . . . . . . 1 1 2 . . . . . . Weapon Failures 2 | . . . . . . 1 . . 1 . . . . . . Overload Shots . | . . . . . . . . . . . . . . . . Overflow Damage 177 | . . . 45 . 43 11 53 . 7 . 9 . . . 9 Projectiles 64 | . . . . . . 11 53 . . . . . . . . Explosions 113 | . . . 45 . 43 . . . 7 . 9 . . . 9 Melee . | . . . . . . . . . . . . . . . . Knockbacks 1 | . . . . . 1 . . . . . . . . . . Impact 1 | . . . . . 1 . . . . . . . . . . Kinetic . | . . . . . . . . . . . . . . . . Secondary . | . . . . . . . . . . . . . . . . Self-Inflicted Damage 275 | . . . . 42 183 27 . . 23 . . . . . . Shots 9 | . . . . 2 5 1 . . 1 . . . . . . Rammed 4 | . . 2 . . 1 1 . . . . . . . . . Targets Rammed 8 | . . 2 . . 1 2 . . . . 3 . . . . Kicked 4 | . . . . . . 1 . . . . 3 . . . . Crushed . | . . . . . . . . . . . . . . . . Highest Temperature 718 | 27 84 72 98 . 62 230 189 272 205 268 60 62 . 178 718 Average Temperature 92 | 14 40 23 33 . 24 69 52 81 75 108 29 30 . 75 280 Received Heat Transfer 1629 | . 30 132 18 . 603 363 30 174 . . 6 . . 27 246 Effects 15 | . . . . . . . . . . . . . . . 15 Shutdowns 3 | . . . . . . . . . . . . . . . 3 Energy Bleed 1 | . . . . . . . . . . . . . . . 1 Interference 1 | . . . . . . . . . . . . . . . 1 Matter Decay 1 | . . . . . . . . . . . . . . . 1 Short Circuit 1 | . . . . . . . . . . . . . . . 1 Damage (minor) 5 | . . . . . . . . . . . . . . . 5 Damage (major) 2 | . . . . . . . . . . . . . . . 2 Damage (core) 1 | . . . . . . . . . . . . . . . 1 Siege Activations . | . . . . . . . . . . . . . . . . Martial Activations . | . . . . . . . . . . . . . . . . Shielding Activations . | . . . . . . . . . . . . . . . . Robots Disrupted . | . . . . . . . . . . . . . . . . Combat Hostiles . | . . . . . . . . . . . . . . . . Robots Corrupted . | . . . . . . . . . . . . . . . . Combat Hostiles . | . . . . . . . . . . . . . . . . Parts Fried 2 | . . . . . . 2 . . . . . . . . . Impact Corruptions . | . . . . . . . . . . . . . . . . Robots Melted . | . . . . . . . . . . . . . . . . Combat Hostiles . | . . . . . . . . . . . . . . . . Parts Melted . | . . . . . . . . . . . . . . . . Heat Transferred 2996 | 111 222 592 111 . . 550 1150 . . . . . . . 260 Parts Sabotaged 3 | . . . . . . . . . . . . . . . 3 Parts Stolen . | . . . . . . . . . . . . . . . . Parts Stripped . | . . . . . . . . . . . . . . . . Power Chain Reactions 1 | . . . . . . 1 . . . . . . . . . Alert | -11 -10 -10 -9 -9 -8 -7 -6 -6 -6 -6 -5 -5 -5 -5 -5 ------- Run | Yrd Mat Min Mat Min Mat Fac Fac Low Low Zio Pro Fac Upp Upp War Maximum Alert Level 3 | . . . . . 2 1 . . . . . 3 . . . Low Security (%) 91 | 100 100 100 100 100 61 95 100 . . . . . . . . Level 1 1 | . . . . . 16 4 . . . . . . . . . Level 2 1 | . . . . . 22 . . . . . . 7 . . . Level 3 5 | . . . . . . . . . . . . 92 . . . Level 4 . | . . . . . . . . . . . . . . . . Level 5 . | . . . . . . . . . . . . . . . . High Security . | . . . . . . . . . . . . . . . . Max Security . | . . . . . . . . . . . . . . . . Peak Influence 900 | 5 71 56 123 166 513 228 79 . . . . 900 . . . Initial 900 | . . . 12 40 . 228 79 . . . . 900 . . . Average 103 | . 26 11 47 39 194 110 15 . . . . 820 . . . Influence Increases 3717 | 5 81 143 324 140 663 436 193 100 90 . 40 917 60 20 505 Destroy 0b10 Robot/C 1480 | . 40 80 180 80 200 180 60 40 80 . 20 . . 20 500 Destroy 0b10 Robot/NC 170 | 5 . 10 30 5 25 35 45 . . . 10 . . . 5 Destroy Leader 222 | . 10 20 46 10 44 40 32 . 10 . 10 . . . . Allied During Kill 37 | . . 14 18 5 . . . . . . . . . . . Successful Hack 21 | . . . . . . . 21 . . . . . . . . Disable Machine 120 | . . . 15 15 30 15 30 . . . . 15 . . . Anti-Garrison Action 150 | . . . . . 150 . . . . . . . . . . Destroy Structure 182 | . 1 19 35 25 64 31 5 . . . . 2 . . . Advance Influence 900 | . . . . . . . . . . . . 900 . . . Partial Spotted 15 | . . . . . 15 . . . . . . . . . . Lose Combat Pursuer 420 | . 30 . . . 135 135 . 60 . . . . 60 . . Influence Decreases 3526 | 5 81 111 251 245 160 775 357 100 90 . 40 310 396 267 338 Entered New Map 748 | . . . 20 65 . 275 85 . . . . . 226 53 24 Time Decay 2265 | 5 81 107 201 180 80 471 272 100 90 . 40 160 170 214 94 Search Patrol Dispatched 150 | . . . . . . . . . . . . 150 . . . Lost Part 234 | . . 4 10 . 80 20 . . . . . . . . 120 Lost Ally 120 | . . . 20 . . . . . . . . . . . 100 Purge Threat 9 | . . . . . . 9 . . . . . . . . . Squads Dispatched 15 | . 1 . 1 . 5 3 4 . . . . 1 . . . Investigation 1 | . . . . . 1 . . . . . . . . . . Extermination 5 | . . . . . . 2 2 . . . . 1 . . . Reinforcement 6 | . 1 . 1 . 1 1 2 . . . . . . . . Assault 2 | . . . . . 2 . . . . . . . . . . Garrison 1 | . . . . . 1 . . . . . . . . . . Intercept . | . . . . . . . . . . . . . . . . Searches Triggered 1 | . . . . . . . . . . . . 1 . . . Construction Impeded 1 | . . . . . 1 . . . . . . . . . . Haulers Reinforced . | . . . . . . . . . . . . . . . . Active Scanning Responses . | . . . . . . . . . . . . . . . . Cargo Convoy Interrupts . | . . . . . . . . . . . . . . . . Stealth | -11 -10 -10 -9 -9 -8 -7 -6 -6 -6 -6 -5 -5 -5 -5 -5 --------- Run | Yrd Mat Min Mat Min Mat Fac Fac Low Low Zio Pro Fac Upp Upp War Distress Signals 9 | . . . 1 . 4 . . . . . . . . . 4 Communications Jammed . | . . . . . . . . . . . . . . . . Distress Signals . | . . . . . . . . . . . . . . . . Times Spotted 149 | . 5 6 13 4 37 20 7 6 4 . 14 1 1 1 30 Peak Tracking Total 19 | . 2 2 5 4 19 4 1 2 2 . 6 1 4 1 12 Tactical Retreats 12 | . 1 . . . 1 6 . 2 . . . . 2 . . Traps | -11 -10 -10 -9 -9 -8 -7 -6 -6 -6 -6 -5 -5 -5 -5 -5 ------- Run | Yrd Mat Min Mat Min Mat Fac Fac Low Low Zio Pro Fac Upp Upp War Traps Triggered 7 | . 1 . . . . 4 2 . . . . . . . . Indirectly . | . . . . . . . . . . . . . . . . Trap Hack Attempts . | . . . . . . . . . . . . . . . . Triggered . | . . . . . . . . . . . . . . . . Disarmed . | . . . . . . . . . . . . . . . . Reprogrammed . | . . . . . . . . . . . . . . . . Reused . | . . . . . . . . . . . . . . . . Traps Extracted . | . . . . . . . . . . . . . . . . Installed . | . . . . . . . . . . . . . . . . Triggered . | . . . . . . . . . . . . . . . . Machines | -11 -10 -10 -9 -9 -8 -7 -6 -6 -6 -6 -5 -5 -5 -5 -5 ---------- Run | Yrd Mat Min Mat Min Mat Fac Fac Low Low Zio Pro Fac Upp Upp War Machines Disabled 10 | . . . 1 1 3 1 2 . . . . 1 . . 1 Max in Single Turn 2 | . . . 1 1 2 1 1 . . . . 1 . . 1 Garrison Access 3 | . . . . . 1 2 . . . . . . . . . Machines Repaired . | . . . . . . . . . . . . . . . . Machines Dismantled . | . . . . . . . . . . . . . . . . Machines Sabotaged . | . . . . . . . . . . . . . . . . Overloaded Fab Kills . | . . . . . . . . . . . . . . . . Hacking | -11 -10 -10 -9 -9 -8 -7 -6 -6 -6 -6 -5 -5 -5 -5 -5 --------- Run | Yrd Mat Min Mat Min Mat Fac Fac Low Low Zio Pro Fac Upp Upp War Machines Accessed 15 | . . . 1 . 1 4 3 1 1 . . 1 . 1 2 Terminals 4 | . . . 1 . . 1 2 . . . . . . . . Fabricators . | . . . . . . . . . . . . . . . . Repair Stations 1 | . . . . . . . 1 . . . . . . . . Recycling Units 1 | . . . . . . 1 . . . . . . . . . Scanalyzers 1 | . . . . . . . . . . . . 1 . . . Garrison Access 3 | . . . . . 1 2 . . . . . . . . . Total Hacks 20 | . . . 2 . 2 5 4 1 1 . . 1 . 1 3 Successful 14 | . . . . . . 4 3 1 1 . . 1 . 1 3 Failed 6 | . . . 2 . 2 1 1 . . . . . . . . Catastrophic 3 | . . . 1 . 1 . 1 . . . . . . . . Database Lockouts . | . . . . . . . . . . . . . . . . Manual 1 | . . . . . . . 1 . . . . . . . . Terminals 5 | . . . 2 . . 1 2 . . . . . . . . Fabricators . | . . . . . . . . . . . . . . . . Repair Stations 2 | . . . . . . . 2 . . . . . . . . Recycling Units 1 | . . . . . . 1 . . . . . . . . . Scanalyzers 1 | . . . . . . . . . . . . 1 . . . Garrison Access 5 | . . . . . 2 3 . . . . . . . . . Terminal Hacks 8 | . . . . . . 1 1 1 1 . . . . 1 3 Record 2 | . . . . . . . . . . . . . . . 2 Open Door 4 | . . . . . . . . 1 1 . . . . 1 1 Terminal Index 1 | . . . . . . . 1 . . . . . . . . Unreport Threat 1 | . . . . . . 1 . . . . . . . . . Fabricator Hacks . | . . . . . . . . . . . . . . . . Repair Station Hacks 2 | . . . . . . . 2 . . . . . . . . Scan Component 1 | . . . . . . . 1 . . . . . . . . Repair 1 | . . . . . . . 1 . . . . . . . . Recycling Unit Hacks 1 | . . . . . . 1 . . . . . . . . . Retrieve Components 1 | . . . . . . 1 . . . . . . . . . Scanalyzer 1 | . . . . . . . . . . . . 1 . . . Insert Component 1 | . . . . . . . . . . . . 1 . . . Garrison Access Hacks 2 | . . . . . . 2 . . . . . . . . . Seal Access 2 | . . . . . . 2 . . . . . . . . . Unauthorized Hacks . | . . . . . . . . . . . . . . . . Terminals . | . . . . . . . . . . . . . . . . Fabricators . | . . . . . . . . . . . . . . . . Repair Stations . | . . . . . . . . . . . . . . . . Recycling Units . | . . . . . . . . . . . . . . . . Scanalyzers . | . . . . . . . . . . . . . . . . Garrison Access . | . . . . . . . . . . . . . . . . Data Cores Recovered 1 | . . . 1 . . . . . . . . . . . . Used . | . . . . . . . . . . . . . . . . Hacking Detections 5 | . . . 1 . 1 1 2 . . . . . . . . Full Trace Events 1 | . . . . . 1 . . . . . . . . . . Feedback Events . | . . . . . . . . . . . . . . . . Feedback Blocked . | . . . . . . . . . . . . . . . . Robot Schematics Acquired 3 | . . . . . . . . . . 3 . . . . . Robots Built . | . . . . . . . . . . . . . . . . Authchips . | . . . . . . . . . . . . . . . . Time . | . . . . . . . . . . . . . . . . Total Robot Build Rating . | . . . . . . . . . . . . . . . . Part Schematics Acquired 14 | . . . . . . . . . . 14 . . . . . Parts Built . | . . . . . . . . . . . . . . . . Authchips . | . . . . . . . . . . . . . . . . Time . | . . . . . . . . . . . . . . . . Total Part Build Rating . | . . . . . . . . . . . . . . . . Parts Repaired 1 | . . . . . . . 1 . . . . . . . . Time 44 | . . . . . . . 44 . . . . . . . . Parts Recycled . | . . . . . . . . . . . . . . . . Recycled Matter . | . . . . . . . . . . . . . . . . Retrieved Matter . | . . . . . . . . . . . . . . . . Retrieved Components 2 | . . . . . . 2 . . . . . . . . . Parts Scanalyzed . | . . . . . . . . . . . . . . . . Part Schematics Acquired . | . . . . . . . . . . . . . . . . Parts Damaged . | . . . . . . . . . . . . . . . . Bothacking | -11 -10 -10 -9 -9 -8 -7 -6 -6 -6 -6 -5 -5 -5 -5 -5 ------------ Run | Yrd Mat Min Mat Min Mat Fac Fac Low Low Zio Pro Fac Upp Upp War Used RIF Installer . | . . . . . . . . . . . . . . . . Robots Hacked . | . . . . . . . . . . . . . . . . Non-combat . | . . . . . . . . . . . . . . . . Combat . | . . . . . . . . . . . . . . . . Robot Hacks Applied . | . . . . . . . . . . . . . . . . Relay Couplers Released . | . . . . . . . . . . . . . . . . Fabnet Peak Effective % . | . . . . . . . . . . . . . . . . Robots Rewired 6 | . . . . . . . 1 . . . . . . . 5 Allies Hacked . | . . . . . . . . . . . . . . . . Hacks Repelled . | . . . . . . . . . . . . . . . . Allies | -11 -10 -10 -9 -9 -8 -7 -6 -6 -6 -6 -5 -5 -5 -5 -5 -------- Run | Yrd Mat Min Mat Min Mat Fac Fac Low Low Zio Pro Fac Upp Upp War Total Allies 9 | . . 3 . . . . 1 . . . . . . . 5 Largest Group 5 | . . 3 2 1 . . 1 . . . . . . . 5 Highest-Rated Group 267 | . . 40 32 16 . . 29 . . . . . . . 267 Highest-Rated Ally 68 | . . 16 16 16 . . 29 . . . . . . . 68 Total Orders 1 | . . . . . . . . . . . . . . . 1 STAY 1 | . . . . . . . . . . . . . . . 1 Ally Attacks 113 | . . 31 35 . . . 7 . . . . . . . 40 Total Damage 2850 | . . 277 335 . . . 57 . . . . . . . 2181 Kills 31 | . . 6 10 . . . . . . . . . . . 15 Allies Corrupted . | . . . . . . . . . . . . . . . . Allies Melted 1 | . . . . . . . . . . . . . . . 1 Intel | -11 -10 -10 -9 -9 -8 -7 -6 -6 -6 -6 -5 -5 -5 -5 -5 ------- Run | Yrd Mat Min Mat Min Mat Fac Fac Low Low Zio Pro Fac Upp Upp War Active Infowar (turns) 10913 | 59 245 567 592 725 221 1387 1093 1175 861 907 609 324 350 452 1346 Sensors 7376 | . . . . . 189 752 411 1175 861 907 609 324 350 452 1346 Structural 1578 | . . . . . . 1111 467 . . . . . . . . Seismic 4378 | 59 245 567 592 725 184 1152 854 . . . . . . . . Robot Analysis Total . | . . . . . . . . . . . . . . . . Derelict Logs Recovered 11 | . . . . 3 . . . 3 . 2 2 . 1 . . Drone Launches . | . . . . . . . . . . . . . . . . Drone Recoveries . | . . . . . . . . . . . . . . . . Exploration | -11 -10 -10 -9 -9 -8 -7 -6 -6 -6 -6 -5 -5 -5 -5 -5 ------------- Run | Yrd Mat Min Mat Min Mat Fac Fac Low Low Zio Pro Fac Upp Upp War Turns Passed 11156 | 147 245 567 592 725 221 1387 1093 1175 861 907 609 324 350 452 1501 Spaces Moved 7718 | 125 194 351 286 446 163 1164 690 627 564 730 382 253 286 355 1102 Core 105 | 4 . . . . 78 23 . . . . . . . . . Treads 900 | . . 83 286 446 85 . . . . . . . . . . Legs 5308 | . . . . . . 319 690 627 564 730 382 253 286 355 1102 Wheels 1405 | 121 194 268 . . . 822 . . . . . . . . . Hover . | . . . . . . . . . . . . . . . . Flight . | . . . . . . . . . . . . . . . . Fastest Speed 50 | 50 100 115 160 160 50 50 122 124 122 122 122 122 122 122 114 Average Speed 124 | 98 105 144 187 160 113 104 124 124 122 122 122 122 122 122 121 Slowest Speed 260 | 100 115 240 240 160 240 190 125 124 124 122 122 122 122 122 260 Overloaded Moves . | . . . . . . . . . . . . . . . . Propulsion Burnouts . | . . . . . . . . . . . . . . . . Robots Hopped . | . . . . . . . . . . . . . . . . Potential Cave-ins . | . . . . . . . . . . . . . . . . Cave-ins Triggered . | . . . . . . . . . . . . . . . . Exploration Rate (%) 47 | 5 27 65 36 90 30 26 23 66 66 85 60 6 48 47 84 Regions Visited 15 Branch Regions 9 Pre-discovered Areas 4 | . . . . 1 . . . . . 3 . . . . . Known Exits Taken 10 | . . . . 1 . 1 1 1 1 1 1 1 1 1 . Unknown Exits Taken 5 | 1 1 1 1 . 1 . . . . . . . . . . Scrap Searched 12 | . . . . 1 . . . 1 3 4 1 . 2 . . Spaces Dug 16 | . . . . . . 5 1 . 9 . . 1 . . . Terrain Destroyed 245 | . . 24 43 33 65 29 4 . 20 . 21 1 . . 5 Melee 1 | . . . . . . . . . . . . 1 . . . Projectile 14 | . . . . . . 6 4 . 2 . . . . . 2 AOE 230 | . . 24 43 33 65 23 . . 18 . 21 . . . 3 Terrain Rammed . | . . . . . . . . . . . . . . . . Walls Destroyed . | . . . . . . . . . . . . . . . . Machines Disabled . | . . . . . . . . . . . . . . . . Actions | -11 -10 -10 -9 -9 -8 -7 -6 -6 -6 -6 -5 -5 -5 -5 -5 --------- Run | Yrd Mat Min Mat Min Mat Fac Fac Low Low Zio Pro Fac Upp Upp War Total 8933 | 140 220 376 316 453 183 1279 856 998 723 746 506 262 286 364 1225 Wait 696 | . 16 . . . . 14 63 355 138 . 108 . . . 2 Move 7703 | 124 193 350 285 445 162 1163 689 626 563 729 381 252 285 354 1102 Hop . | . . . . . . . . . . . . . . . . Pick Up 71 | 6 3 2 8 2 1 5 17 4 4 5 1 2 . 2 9 Fast Attach 57 | 6 . 1 2 . 2 23 6 . . 2 . . . . 15 Attach 23 | 1 . 2 2 . . 4 2 . 1 1 . 2 . . 8 Detach 8 | . . . . . . 2 1 . . 1 . . . . 4 Swap 49 | . 1 2 3 3 2 8 12 . 5 2 2 2 1 1 5 Drop 61 | . . . . . 2 15 15 . 3 5 1 1 . 2 17 Fire 213 | 3 7 17 16 3 13 43 49 13 9 . 10 2 . 5 23 Melee 2 | . . . . . . . . . . 1 . 1 . . . Ram 1 | . . . . . . 1 . . . . . . . . . Kick 4 | . . . . . . 1 . . . . 3 . . . . Crush 3 | . . 2 . . 1 . . . . . . . . . . Escape Stasis . | . . . . . . . . . . . . . . . . Rewire 42 | . . . . . . . 2 . . . . . . . 40 Trap . | . . . . . . . . . . . . . . . . Miscellaneous . | . . . . . . . . . . . . . . . . Route ------- -11/Scrapyard -10/Materials -10/Mines (discovered 2 exits: *Mat x2) -9/Materials (discovered 2 exits: *Mat / [*Min]) -9/Mines (discovered 2 exits: *Mat x2) -8/Materials -7/Factory -6/Factory -6/Lower Caves -6/Lower Caves -6/Zion -5/Proximity Caves -5/Factory -5/Upper Caves -5/Upper Caves -5/Warlord History --------- Turn | Location | Event 3 | -11/Scrapyard | Discovered new exit (range 16) 148 | -11/Scrapyard | Entered Materials 301 | -10/Materials | Build established: Mutant 356 | -10/Materials | Discovered new exit (range 15) 393 | -10/Materials | Entered Mines 451 | -10/Mines | Discovered new exit (range 14) 464 | -10/Mines | Assisted by bots powering up and referring to "LRC-V3" 680 | -10/Mines | Received a Rocket Launcher from a helpful Derelict 709 | -10/Mines | Assembled infested the area 747 | -10/Mines | Core integrity fell below 50% 779 | -10/Mines | Lost 3 parts (1p2n) 878 | -10/Mines | Discovered new exit (range 8) 960 | -10/Mines | Entered Materials 960 | -9/Materials | Accompanied by 2 allies 960 | -9/Materials | Evolved 2 slots: Propulsion x1, Utility x1 1397 | -9/Materials | Discovered new exit (range 16) 1529 | -9/Materials | Discovered new exit (range 12) 1552 | -9/Materials | Entered Mines 1552 | -9/Mines | Accompanied by 1 ally 1591 | -9/Mines | Found DCF Scrap (15 items) 1599 | -9/Mines | Identified exit to Materials 1636 | -9/Mines | Learned location of Zion (-6) 1727 | -9/Mines | YI-UF0 nonchalantly dropped a Grenade Launcher on the ground 1752 | -9/Mines | Learned Materials trap positions 2126 | -9/Mines | Discovered exit to Materials (range 14) 2175 | -9/Mines | Found a damaged Exp. Sensor Array with a note attached 2178 | -9/Mines | Found Prototype Device 2277 | -9/Mines | Entered Materials 2277 | -8/Materials | Evolved 2 slots: Propulsion x1, Utility x1 2278 | -8/Materials | Loaded intel: 31 trap records 2347 | -8/Materials | Garrison activated, responded to threat 2491 | -8/Materials | Core integrity fell below 50% 2493 | -8/Materials | Lost 6 parts (1p2n1u2w) 2494 | -8/Materials | Discovered new exit (range 10) 2498 | -8/Materials | Entered Factory 2498 | -7/Factory | Evolved 2 slots: Utility x1, Weapon x1 2973 | -7/Factory | Discovered new exit (range 6) 3033 | -7/Factory | Identified exit to Factory 3070 | -7/Factory | Build established: Skirmisher 3559 | -7/Factory | Build established: Tank 3885 | -7/Factory | Entered another Factory area 3885 | -6/Factory | Evolved 2 slots: Propulsion x1, Utility x1 4233 | -6/Factory | Build established: Skirmisher 4408 | -6/Factory | Spotted B-75 Beast 4610 | -6/Factory | Repaired Imp. Medium Armor Plating 4702 | -6/Factory | Discovered new exit (range 6) 4756 | -6/Factory | Identified exit to Lower Caves 4978 | -6/Factory | Entered Lower Caves 5001 | -6/Lower Caves | Encountered a Warlord checkpoint 5017 | -6/Lower Caves | Learned 12 Factory zone layouts 5032 | -6/Lower Caves | Spotted B-75 Beast 5047 | -6/Lower Caves | Build established: Hacker-Skirmisher 5970 | -6/Lower Caves | Discovered new exit (range 8) 5976 | -6/Lower Caves | Identified exit to Lower Caves 6084 | -6/Lower Caves | Learned Factory terminal intel 6153 | -6/Lower Caves | Entered another Lower Caves area 6686 | -6/Lower Caves | Discovered new exit (range 8) 7013 | -6/Lower Caves | Identified exit to Zion 7014 | -6/Lower Caves | Entered Zion 7040 | -6/Zion | Given A8's code to call for help 7112 | -6/Zion | Discovered new exit (range 14) 7162 | -6/Zion | Learned location of 1 exit from Lower Caves 7185 | -6/Zion | System corruption cleaned by Quarantine Array 7271 | -6/Zion | Given the Hacking Drone Bay 7271 | -6/Zion | Found Prototype Device 7457 | -6/Zion | Met Imprinter 7802 | -6/Zion | Found Prototype Device 7920 | -6/Zion | Identified exit to Proximity Caves 7921 | -6/Zion | Entered Proximity Caves 7924 | -5/Proximity Caves | Spotter reported a threat 7924 | -5/Proximity Caves | Spotter reported a threat 8194 | -5/Proximity Caves | Spotter reported a threat 8247 | -5/Proximity Caves | Spotter reported a threat 8366 | -5/Proximity Caves | Spotter reported a threat 8382 | -5/Proximity Caves | Spotter reported a threat 8419 | -5/Proximity Caves | Learned location of 1 exit from Upper Caves 8463 | -5/Proximity Caves | Unaware initiated a cargo recovery operation 8517 | -5/Proximity Caves | Discovered new exit (range 12) 8529 | -5/Proximity Caves | Identified exit to Factory 8530 | -5/Proximity Caves | Entered Factory 8530 | -5/Factory | Evolved 2 slots: Power x1, Utility x1 8532 | -5/Factory | Loaded intel: 25 terminal locations 8699 | -5/Factory | Discovered new exit (range 14) 8715 | -5/Factory | Identified exit to Upper Caves 8830 | -5/Factory | Search patrols dispatched 8854 | -5/Factory | Entered Upper Caves 8855 | -5/Upper Caves | Identified exit to Upper Caves 9040 | -5/Upper Caves | Build established: Hacker-Mutant 9204 | -5/Upper Caves | Entered another Upper Caves area 9205 | -5/Upper Caves | Identified exit to Warlord 9349 | -5/Upper Caves | Attracted the attention of an 0b10 checkpoint 9374 | -5/Upper Caves | Encountered a Warlord checkpoint 9656 | -5/Upper Caves | Build established: Hacker-Tank 9656 | -5/Upper Caves | Entered Warlord 10330 | -5/Warlord | Warlord's base attacked by MAIN.C 10435 | -5/Warlord | Build established: Hacker-Skirmisher 10528 | -5/Warlord | Found Prototype Energy Cannon 10629 | -5/Warlord | Identified Vortex Driver 10652 | -5/Warlord | Found Prototype Hackware 10652 | -5/Warlord | Identified Ghost Barrier 10662 | -5/Warlord | Found Prototype Reactor 10662 | -5/Warlord | Identified Vortex Chain Reactor 10680 | -5/Warlord | Warlord forces counterattacked 10847 | -5/Warlord | Met Warlord 10982 | -5/Warlord | Spotted Executioner 10983 | -5/Warlord | Spotted Striker 11005 | -5/Warlord | Warlord base infiltrated, sounded retreat 11013 | -5/Warlord | Destroyed 9 combat bots 11040 | -5/Warlord | Destroyed Executioner 11053 | -5/Warlord | Spotted B-86 Titan 11114 | -5/Warlord | Lost 8 parts (2p2n2u2w) 11152 | -5/Warlord | Spotted Executioner 11157 | -5/Warlord | Self-destructed Last Messages --------------- 11125_ Acquired 36 matter. 11128_ S-27 Virus destroyed. 11128_ S-43 Plague destroyed. 11129_ Acquired Adv. Heat Sink. 11130_ ANNOUNCEMENT: Detected 3 Grunt squads, 1 Behemoth squad, with prototype support. 11132_ The unstable cave ceiling collapses. 11133_ Acquired 120 matter. 11135_ The unstable cave ceiling collapses. 11135_ 24 Matter crushed. 11138_ Acquired Coil Gun. 11142_ The unstable cave ceiling collapses. 11147_ Enhanced Demolisher suffers critical hit (Destroy). 11147_ Enhanced Demolisher destroyed. 11148_ Acquired Neutrino Core. 11153_ Slug penetrates G-67 Veteran. 11153_ G-67 Veteran destroyed. 11154_ Lgt. Antimatter Reactor destroyed. 11156_ Flexi-carbon Leg destroyed. 11157_ The unstable cave ceiling collapses. Map ----- +----------------------------------------------------+ | #????????#! """#????????????????????????????????? | | #??????#### ####????????????????????????????????? | | ########X##+#######+#####????????????????????????? | | #????????????????????????? | | #????????????????????????? | | ^ #????????????????????????? | | ########### """ """ #????????????????????????? | | #########?# """ """ #????????????????????????? | | """""""#?# """ """ #????????????????????????? | | """"#?# #????????????????????????? | | ! """"#?# #????????????????????????? | | ]""" #"#"="####### ###????????????????????????? | | ## %%= ##### #??????????????????????????? | | " ## = # #?????????????????????# ???? | | """## *% " #?????????????????????? ??? | | X""""## [[ + #??????????????????????? ?? | | "" """#" [*!! ; #???????????????????????? ## | | """"""""##!!!%==# #??????"?????????????????? | | ########## *%=[ #;! ##??????"#?????????????????# | | ########## %=;;%! ######?""#?????????????????# | | # *%;=!* ## # ##""#??????????????????# | | ! ! #####"=%!!%! ""#??????????????????? | | % ! ! #### =*=/ ""######?????????????? | | ! ! # * %%* "" = ###########???? | | # ## [ % ""[ ="""""""""#???? | | "" # =# [ = % % #@ "" """"""""#?### | | =[ * = E ### | | %[ % d + | | % % ==% d + | | !%! = %== [ #### | | == ! ""!= """"""#??## | | % = = ""= """"""#???# | | # * ""[] # #######???# | | ### # ""## #???????????# | | # ####""#?######??????????? | | ##+ ## ##### ####??#""#????????????????? | | #######???# ##?????""?????????????????? | | #?????????# #???????????????????????? | | ! #?????????# ##???????????????????????? | | ########### #????????????????????????? # | | + #????????????????????????? ? | | # #????????????????????????? ? | | ######## #????????????????????????? ?? | | ?????###+#+########+####?????????????????????????? | | ?????# # #?????????????????????????? | | "#???# # #?????????????????????????? | | "#???# """ """ # """"" #?????????????????????????? | | "#???# """ """ # """"" #?????????????????????????? | | "#???# """ """ # """"" #?????????????????????????? | | "#???# """ """ # #?????????????????????????? | +----------------------------------------------------+ Best States ------------- Heat Dissipation 59 Energy Generation 55 Energy Capacity 700 Matter Stores 300 Matter Capacity 300 Sight Range 16 Robot Scan Range 16 Terrain Scan Density 10 Armor Coverage 825 Weapon Cycling 15 Melee Speed Boost 20 Evasion (%) 55 Recoil Reduction 4 Offensive Hacking 12 Defensive Hacking 20 Authchip Count 1 Item Schematics ----------------- Imp. Medium Treads | -6/Zion | Archive Imp. Remote Datajack | -6/Zion | Archive Imp. Reaction Control System | -6/Zion | Archive Adv. Plasma Cannon | -6/Zion | Archive Adv. Heat Sink | -6/Zion | Archive Fission Core | -6/Zion | Archive Point Defense System | -6/Zion | Archive Myomer Leg | -6/Zion | Archive Imp. Hacking Suite | -6/Zion | Archive Adv. Recoil Stabilizer | -6/Zion | Archive Field Propulsion Drive | -6/Zion | Archive Stasis Canceller | -6/Zion | Archive Arm. Medium Treads | -6/Zion | Archive Hvy. Mass Driver | -6/Zion | Archive Robot Schematics ------------------ B-48 Gladiator | -6/Zion | Archive A-15 Conveyor | -6/Zion | Archive A-02 Transporter | -6/Zion | Archive Fabricated ------------ Nothing Repaired ---------- Imp. Medium Armor Plating | 13% | -6/Factory Alien Tech Used ----------------- None Achievements -------------- None Challenges ------------ None Game ------ Seed FusionSensorMiniperforator Manual? 0 Play Time 01:33:28 Cumulative 75.0 hours Start 2025.06.06 @ 21:20:13 End 2025.06.06 @ 23:06:45 Sessions 1 Manual Loads 0 Difficulty Rogue Special Mode None Game No. 52 Rogue 52 Adventurer 0 Explorer 0 Win Type - Total 6 Types 2/0/2/0/1/0/0/0/0/1 Lore% 55 Gallery% 53 Achievement% 58 Wizard Run 0 Options --------- Layout 0 ASCII 0 Keyboard 1 Movement Vi Keybinds 0 Fullscreen 2 Font 18/SmallcapsGlow Map View 76x50 Zoom Use 1% Tactical HUD 1 Map Filters NONE Filters NONE Steam 1 RUN: 2526511e-edad-44d1-8785-1e0bf72d56de